[Event "Titled Tuesday Blitz June 28 Early 2022"]
[White "Vlassov, Nikolai"]
[Black "Samsonkin, Artiom"]
[WhiteFideId "4103360"]
[BlackFideId "13503111"]
[WhiteElo "2407"]
[BlackElo "2513"]
[Result "0-1"]
[Round "06"]
[TimeControl "180+1"]
[Date "2022.06.28"]
[WhiteClock "0:01:48"]
[BlackClock "0:00:49"]

1. e4 {[%clk 0:03:00]}  d5 {[%clk 0:02:57]} 2. exd5 {[%clk 0:03:01]}  Qxd5 {[%clk 0:02:58]} 3. Nc3 {[%clk 0:03:01]}  Qa5 {[%clk 0:02:59]} 4. Nf3 {[%clk 0:03:01]}  Nf6 {[%clk 0:02:58]} 5. d4 {[%clk 0:03:01]}  Bg4 {[%clk 0:02:58]} 6. h3 {[%clk 0:03:01]}  Bxf3 {[%clk 0:02:58]} 7. Qxf3 {[%clk 0:03:01]}  c6 {[%clk 0:02:56]} 8. Bc4 {[%clk 0:02:59]}  e6 {[%clk 0:02:56]} 9. Bd2 {[%clk 0:02:58]}  Nbd7 {[%clk 0:02:54]} 10. O-O-O {[%clk 0:02:58]}  Qb6 {[%clk 0:02:54]} 11. Bf4 {[%clk 0:02:44]}  Bb4 {[%clk 0:02:30]} 12. Ne4 {[%clk 0:02:41]}  Nxe4 {[%clk 0:02:25]} 13. Qxe4 {[%clk 0:02:41]}  Nf6 {[%clk 0:02:23]} 14. Qf3 {[%clk 0:02:35]}  O-O-O {[%clk 0:02:17]} 15. Be5 {[%clk 0:02:30]}  Be7 {[%clk 0:01:43]} 16. g4 {[%clk 0:02:29]}  Rhf8 {[%clk 0:01:32]} 17. g5 {[%clk 0:02:29]}  Ne8 {[%clk 0:01:32]} 18. h4 {[%clk 0:02:26]}  Bd6 {[%clk 0:01:24]} 19. h5 {[%clk 0:02:18]}  Qa5 {[%clk 0:01:05]} 20. Rhe1 {[%clk 0:02:05]}  Bxe5 {[%clk 0:00:55]} 21. Rxe5 {[%clk 0:02:03]}  Qb4 {[%clk 0:00:54]} 22. Bxe6+ {[%clk 0:02:00]}  fxe6 {[%clk 0:00:54]} 23. Qe4 {[%clk 0:01:49]}  Nd6 {[%clk 0:00:50]} 24. Qxh7 {[%clk 0:01:48]}  Nc4 {[%clk 0:00:49]} 0-1


[Site "https://www.chess.com"]

[Event "Titled Tuesday Blitz June 28 Early 2022"]
[White "Xu, Yi"]
[Black "Odegov, Artem"]
[WhiteFideId "8605564"]
[BlackFideId "34183644"]
[WhiteElo "2471"]
[BlackElo "2286"]
[Result "0-1"]
[Round "06"]
[TimeControl "180+1"]
[Date "2022.06.28"]
[WhiteClock "0:00:04"]
[BlackClock "0:00:02"]

1. e4 {[%clk 0:03:00]}  e6 {[%clk 0:02:58]} 2. d4 {[%clk 0:03:00]}  d5 {[%clk 0:02:58]} 3. e5 {[%clk 0:03:00]}  c5 {[%clk 0:02:58]} 4. c3 {[%clk 0:03:01]}  Qb6 {[%clk 0:02:59]} 5. Nf3 {[%clk 0:03:00]}  Nc6 {[%clk 0:02:59]} 6. a3 {[%clk 0:02:59]}  Nh6 {[%clk 0:02:58]} 7. Bd3 {[%clk 0:02:57]}  Bd7 {[%clk 0:02:53]} 8. O-O {[%clk 0:02:56]}  cxd4 {[%clk 0:02:53]} 9. Re1 {[%clk 0:02:56]}  Be7 {[%clk 0:02:48]} 10. b4 {[%clk 0:02:56]}  a6 {[%clk 0:02:26]} 11. Ra2 {[%clk 0:02:39]}  Rc8 {[%clk 0:02:24]} 12. Bd2 {[%clk 0:02:17]}  Ng4 {[%clk 0:02:21]} 13. h3 {[%clk 0:01:23]}  Nxf2 {[%clk 0:01:53]} 14. Kxf2 {[%clk 0:01:23]}  dxc3+ {[%clk 0:01:54]} 15. Be3 {[%clk 0:01:23]}  d4 {[%clk 0:01:54]} 16. Bf4 {[%clk 0:01:12]}  Bxb4 {[%clk 0:01:54]} 17. axb4 {[%clk 0:01:04]}  Nxb4 {[%clk 0:01:55]} 18. Rae2 {[%clk 0:01:03]}  O-O {[%clk 0:01:39]} 19. Na3 {[%clk 0:00:58]}  Ba4 {[%clk 0:01:34]} 20. Qxa4 {[%clk 0:00:20]}  Nxd3+ {[%clk 0:01:32]} 21. Kg3 {[%clk 0:00:20]}  Nxf4 {[%clk 0:01:12]} 22. Kxf4 {[%clk 0:00:20]}  d3 {[%clk 0:01:12]} 23. Re3 {[%clk 0:00:15]}  d2 {[%clk 0:01:09]} 24. Rd1 {[%clk 0:00:11]}  Rfd8 {[%clk 0:01:00]} 25. Nc2 {[%clk 0:00:10]}  h6 {[%clk 0:01:00]} 26. Re4 {[%clk 0:00:10]}  Qf2 {[%clk 0:00:57]} 27. Rd4 {[%clk 0:00:06]}  g5+ {[%clk 0:00:55]} 28. Ke4 {[%clk 0:00:06]}  Qe2+ {[%clk 0:00:07]} 29. Ne3 {[%clk 0:00:06]}  b5 {[%clk 0:00:06]} 30. Qc2 {[%clk 0:00:04]}  Rc4 {[%clk 0:00:04]} 31. Rxc4 {[%clk 0:00:04]}  bxc4 {[%clk 0:00:03]} 32. Nd4 {[%clk 0:00:04]}  Qf2 {[%clk 0:00:02]} 33. Qxc3 {[%clk 0:00:04]}  Qf4# {[%clk 0:00:02]} 0-1


[Site "https://www.chess.com"]

[Event "Titled Tuesday Blitz June 28 Early 2022"]
[White "Yaniuk, Volodymyr"]
[Black "Matveeva, Olga"]
[WhiteFideId "14133083"]
[BlackFideId "24107018"]
[WhiteElo "2207"]
[BlackElo "2052"]
[Result "0-1"]
[Round "06"]
[TimeControl "180+1"]
[Date "2022.06.28"]
[WhiteClock "0:01:25"]
[BlackClock "0:00:50"]

1. d4 {[%clk 0:03:00]}  Nf6 {[%clk 0:02:59]} 2. Bf4 {[%clk 0:03:00]}  d5 {[%clk 0:02:57]} 3. e3 {[%clk 0:03:00]}  e6 {[%clk 0:02:58]} 4. Nc3 {[%clk 0:03:01]}  c5 {[%clk 0:02:57]} 5. Nb5 {[%clk 0:03:01]}  Na6 {[%clk 0:02:56]} 6. c3 {[%clk 0:03:00]}  Be7 {[%clk 0:02:49]} 7. Nf3 {[%clk 0:02:57]}  O-O {[%clk 0:02:48]} 8. h3 {[%clk 0:02:57]}  Ne4 {[%clk 0:02:41]} 9. Nd2 {[%clk 0:02:52]}  cxd4 {[%clk 0:02:31]} 10. Nxe4 {[%clk 0:02:48]}  dxe4 {[%clk 0:02:30]} 11. exd4 {[%clk 0:02:49]}  Qd5 {[%clk 0:02:21]} 12. Qb3 {[%clk 0:02:43]}  Bd7 {[%clk 0:02:13]} 13. a4 {[%clk 0:02:38]}  Qxb3 {[%clk 0:02:08]} 14. Bc1 {[%clk 0:02:25]}  Bxb5 {[%clk 0:01:59]} 15. axb5 {[%clk 0:02:25]}  Nc7 {[%clk 0:01:57]} 16. Be2 {[%clk 0:02:25]}  Nxb5 {[%clk 0:01:54]} 17. O-O {[%clk 0:02:26]}  Nc7 {[%clk 0:01:52]} 18. Re1 {[%clk 0:02:24]}  a5 {[%clk 0:01:50]} 19. Bf1 {[%clk 0:02:24]}  f5 {[%clk 0:01:48]} 20. f3 {[%clk 0:02:23]}  exf3 {[%clk 0:01:47]} 21. gxf3 {[%clk 0:02:24]}  Qd5 {[%clk 0:01:45]} 22. Kg2 {[%clk 0:02:21]}  f4 {[%clk 0:01:44]} 23. Re4 {[%clk 0:02:16]}  Qg5+ {[%clk 0:01:42]} 24. Kf2 {[%clk 0:02:17]}  Qg3+ {[%clk 0:01:41]} 25. Ke2 {[%clk 0:02:17]}  Bf6 {[%clk 0:01:35]} 26. Bxf4 {[%clk 0:02:12]}  Qg6 {[%clk 0:01:34]} 27. Bxc7 {[%clk 0:02:11]}  a4 {[%clk 0:01:33]} 28. Bd6 {[%clk 0:02:05]}  Rfe8 {[%clk 0:01:32]} 29. Rd1 {[%clk 0:02:00]}  Rad8 {[%clk 0:01:26]} 30. Bc7 {[%clk 0:01:58]}  Rd7 {[%clk 0:01:25]} 31. Bf4 {[%clk 0:01:57]}  e5 {[%clk 0:01:19]} 32. dxe5 {[%clk 0:01:47]}  Rxd1 {[%clk 0:01:18]} 33. Kxd1 {[%clk 0:01:47]}  Rd8+ {[%clk 0:01:18]} 34. Kc2 {[%clk 0:01:43]}  Be7 {[%clk 0:01:07]} 35. Bc4+ {[%clk 0:01:41]}  Kh8 {[%clk 0:01:07]} 36. Be2 {[%clk 0:01:38]}  Qg2 {[%clk 0:01:04]} 37. h4 {[%clk 0:01:33]}  Bxh4 {[%clk 0:01:03]} 38. e6 {[%clk 0:01:32]}  Be7 {[%clk 0:01:01]} 39. Bc7 {[%clk 0:01:31]}  Rc8 {[%clk 0:01:00]} 40. Be5 {[%clk 0:01:30]}  b5 {[%clk 0:00:58]} 41. Kd3 {[%clk 0:01:29]}  Rd8+ {[%clk 0:00:56]} 42. Ke3 {[%clk 0:01:29]}  Qg1+ {[%clk 0:00:51]} 43. Kf4 {[%clk 0:01:25]}  Qg5# {[%clk 0:00:50]} 0-1


[Site "https://www.chess.com"]

[Event "Titled Tuesday Blitz June 28 Early 2022"]
[White "Adewumi, Tanitoluwa"]
[Black "Mekhane, Adam"]
[WhiteFideId "30966396"]
[BlackFideId "36050601"]
[WhiteElo "2683"]
[BlackElo "2002"]
[Result "1/2-1/2"]
[Round "07"]
[TimeControl "180+1"]
[Date "2022.06.28"]
[WhiteClock "0:00:09"]
[BlackClock "0:00:09"]

1. e4 {[%clk 0:02:59]}  e5 {[%clk 0:02:56]} 2. Nf3 {[%clk 0:02:58]}  Nc6 {[%clk 0:02:56]} 3. Bc4 {[%clk 0:02:59]}  Nf6 {[%clk 0:02:56]} 4. d3 {[%clk 0:02:58]}  h6 {[%clk 0:02:55]} 5. h3 {[%clk 0:02:55]}  d6 {[%clk 0:02:54]} 6. Nbd2 {[%clk 0:02:47]}  g6 {[%clk 0:02:51]} 7. Nf1 {[%clk 0:02:46]}  Bg7 {[%clk 0:02:51]} 8. Ng3 {[%clk 0:02:47]}  O-O {[%clk 0:02:52]} 9. Bb3 {[%clk 0:02:42]}  a6 {[%clk 0:02:43]} 10. c3 {[%clk 0:02:39]}  d5 {[%clk 0:02:38]} 11. Qe2 {[%clk 0:02:34]}  Kh7 {[%clk 0:02:30]} 12. O-O {[%clk 0:02:28]}  Be6 {[%clk 0:02:30]} 13. Rd1 {[%clk 0:02:14]}  Qe7 {[%clk 0:02:26]} 14. Be3 {[%clk 0:02:08]}  dxe4 {[%clk 0:02:23]} 15. dxe4 {[%clk 0:02:07]}  Rad8 {[%clk 0:02:17]} 16. Bxe6 {[%clk 0:01:46]}  Qxe6 {[%clk 0:02:16]} 17. Bc5 {[%clk 0:01:44]}  Rfe8 {[%clk 0:02:13]} 18. Nh4 {[%clk 0:01:42]}  Rd7 {[%clk 0:02:05]} 19. Rf1 {[%clk 0:01:25]}  Red8 {[%clk 0:02:03]} 20. Be3 {[%clk 0:01:26]}  Ne7 {[%clk 0:01:56]} 21. Qf3 {[%clk 0:01:14]}  Rd3 {[%clk 0:01:51]} 22. Kh2 {[%clk 0:01:09]}  Qc6 {[%clk 0:01:46]} 23. a4 {[%clk 0:00:48]}  a5 {[%clk 0:01:46]} 24. Ra3 {[%clk 0:00:43]}  b6 {[%clk 0:01:45]} 25. Rc1 {[%clk 0:00:42]}  Kg8 {[%clk 0:01:35]} 26. c4 {[%clk 0:00:38]}  Rxa3 {[%clk 0:01:32]} 27. bxa3 {[%clk 0:00:39]}  Qxa4 {[%clk 0:01:30]} 28. c5 {[%clk 0:00:37]}  Qxa3 {[%clk 0:01:28]} 29. cxb6 {[%clk 0:00:35]}  cxb6 {[%clk 0:01:28]} 30. Rc7 {[%clk 0:00:29]}  Qd6 {[%clk 0:01:25]} 31. Rb7 {[%clk 0:00:27]}  Nc8 {[%clk 0:01:18]} 32. Ngf5 {[%clk 0:00:20]}  Qc6 {[%clk 0:01:14]} 33. Rb8 {[%clk 0:00:15]}  Qxe4 {[%clk 0:00:55]} 34. Qxe4 {[%clk 0:00:11]}  Nxe4 {[%clk 0:00:53]} 35. Rxc8 {[%clk 0:00:07]}  Rxc8 {[%clk 0:00:53]} 36. Ne7+ {[%clk 0:00:07]}  Kh7 {[%clk 0:00:49]} 37. Nxc8 {[%clk 0:00:08]}  b5 {[%clk 0:00:45]} 38. Na7 {[%clk 0:00:07]}  b4 {[%clk 0:00:45]} 39. Nf3 {[%clk 0:00:04]}  a4 {[%clk 0:00:40]} 40. Nc6 {[%clk 0:00:03]}  b3 {[%clk 0:00:40]} 41. Bc1 {[%clk 0:00:03]}  Nxf2 {[%clk 0:00:38]} 42. Ba3 {[%clk 0:00:02]}  Nd3 {[%clk 0:00:37]} 43. Nd2 {[%clk 0:00:02]}  b2 {[%clk 0:00:35]} 44. Na5 {[%clk 0:00:01]}  e4 {[%clk 0:00:34]} 45. Nac4 {[%clk 0:00:02]}  e3 {[%clk 0:00:34]} 46. Nxe3 {[%clk 0:00:02]}  Be5+ {[%clk 0:00:29]} 47. g3 {[%clk 0:00:02]}  h5 {[%clk 0:00:22]} 48. Nec4 {[%clk 0:00:02]}  Bc3 {[%clk 0:00:17]} 49. Kg2 {[%clk 0:00:03]}  h4 {[%clk 0:00:15]} 50. Kf3 {[%clk 0:00:04]}  hxg3 {[%clk 0:00:15]} 51. Kxg3 {[%clk 0:00:04]}  Kh6 {[%clk 0:00:15]} 52. Kf3 {[%clk 0:00:05]}  Kh5 {[%clk 0:00:15]} 53. Ke3 {[%clk 0:00:05]}  Ne5 {[%clk 0:00:12]} 54. Nxe5 {[%clk 0:00:04]}  Bxe5 {[%clk 0:00:12]} 55. Kd3 {[%clk 0:00:03]}  Kh4 {[%clk 0:00:12]} 56. Nf3+ {[%clk 0:00:03]}  Kxh3 {[%clk 0:00:12]} 57. Kc2 {[%clk 0:00:03]}  Bf6 {[%clk 0:00:11]} 58. Nd2 {[%clk 0:00:02]}  g5 {[%clk 0:00:11]} 59. Ne4 {[%clk 0:00:03]}  g4 {[%clk 0:00:08]} 60. Nxf6 {[%clk 0:00:02]}  g3 {[%clk 0:00:08]} 61. Nh5 {[%clk 0:00:02]}  g2 {[%clk 0:00:08]} 62. Nf4+ {[%clk 0:00:03]}  Kh2 {[%clk 0:00:08]} 63. Ne2 {[%clk 0:00:03]}  g1=Q {[%clk 0:00:07]} 64. Bd6+ {[%clk 0:00:03]}  Kg2 {[%clk 0:00:06]} 65. Nxg1 {[%clk 0:00:04]}  Kxg1 {[%clk 0:00:07]} 66. Kxb2 {[%clk 0:00:04]}  f5 {[%clk 0:00:07]} 67. Ka3 {[%clk 0:00:05]}  f4 {[%clk 0:00:08]} 68. Kxa4 {[%clk 0:00:06]}  f3 {[%clk 0:00:08]} 69. Bc5+ {[%clk 0:00:07]}  f2 {[%clk 0:00:08]} 70. Ka5 {[%clk 0:00:08]}  Kg2 {[%clk 0:00:09]} 71. Bxf2 {[%clk 0:00:09]} 1/2-1/2


[Site "https://www.chess.com"]

[Event "Titled Tuesday Blitz June 28 Early 2022"]
[White "Agasarov, Benik"]
[Black "Baches Garcia, Guillermo"]
[WhiteFideId "13314823"]
[BlackFideId "2209764"]
[WhiteElo "2702"]
[BlackElo "2493"]
[Result "0-1"]
[Round "07"]
[TimeControl "180+1"]
[Date "2022.06.28"]
[WhiteClock "0:00:30"]
[BlackClock "0:00:20"]

1. c4 {[%clk 0:01:53]}  Nf6 {[%clk 0:02:57]} 2. Nc3 {[%clk 0:01:51]}  e5 {[%clk 0:02:57]} 3. Nf3 {[%clk 0:01:50]}  Nc6 {[%clk 0:02:56]} 4. g3 {[%clk 0:01:51]}  d5 {[%clk 0:02:56]} 5. cxd5 {[%clk 0:01:51]}  Nxd5 {[%clk 0:02:57]} 6. Bg2 {[%clk 0:01:51]}  Nb6 {[%clk 0:02:57]} 7. O-O {[%clk 0:01:52]}  Be7 {[%clk 0:02:58]} 8. b3 {[%clk 0:01:52]}  O-O {[%clk 0:02:58]} 9. Bb2 {[%clk 0:01:53]}  Re8 {[%clk 0:02:59]} 10. Rc1 {[%clk 0:01:53]}  Bf8 {[%clk 0:02:58]} 11. d3 {[%clk 0:01:53]}  Nd4 {[%clk 0:02:54]} 12. Nxd4 {[%clk 0:01:53]}  exd4 {[%clk 0:02:54]} 13. Nb5 {[%clk 0:01:51]}  c5 {[%clk 0:02:45]} 14. Na3 {[%clk 0:01:51]}  Bg4 {[%clk 0:02:32]} 15. Re1 {[%clk 0:01:50]}  Qd7 {[%clk 0:02:25]} 16. Nc4 {[%clk 0:01:48]}  Nd5 {[%clk 0:02:20]} 17. Nd2 {[%clk 0:01:45]}  Bh3 {[%clk 0:02:06]} 18. Bf3 {[%clk 0:01:39]}  Rad8 {[%clk 0:01:57]} 19. a3 {[%clk 0:01:34]}  b6 {[%clk 0:01:53]} 20. Qc2 {[%clk 0:01:33]}  g6 {[%clk 0:01:46]} 21. Qb1 {[%clk 0:01:30]}  Bg7 {[%clk 0:01:42]} 22. Qa1 {[%clk 0:01:28]}  Bg4 {[%clk 0:01:32]} 23. b4 {[%clk 0:01:24]}  Nc3 {[%clk 0:01:26]} 24. Bxg4 {[%clk 0:01:12]}  Qxg4 {[%clk 0:01:24]} 25. Bxc3 {[%clk 0:01:12]}  dxc3 {[%clk 0:01:21]} 26. Ne4 {[%clk 0:01:13]}  c4 {[%clk 0:01:09]} 27. Nxc3 {[%clk 0:01:05]}  cxd3 {[%clk 0:00:59]} 28. exd3 {[%clk 0:01:05]}  Rxe1+ {[%clk 0:00:58]} 29. Rxe1 {[%clk 0:01:06]}  Qd4 {[%clk 0:00:50]} 30. Re7 {[%clk 0:00:28]}  Qxc3 {[%clk 0:00:45]} 31. Qd1 {[%clk 0:00:28]}  Qxa3 {[%clk 0:00:34]} 32. Qf3 {[%clk 0:00:26]}  Rf8 {[%clk 0:00:30]} 33. Kg2 {[%clk 0:00:25]}  Qxb4 {[%clk 0:00:23]} 34. Rxa7 {[%clk 0:00:25]}  h5 {[%clk 0:00:22]} 35. h4 {[%clk 0:00:24]}  Qd4 {[%clk 0:00:22]} 36. Rb7 {[%clk 0:00:23]}  Bf6 {[%clk 0:00:20]} 37. Qc6 {[%clk 0:00:22]}  Kg7 {[%clk 0:00:19]} 38. Rxb6 {[%clk 0:00:22]}  Rd8 {[%clk 0:00:18]} 39. Ra6 {[%clk 0:00:19]}  Qd5+ {[%clk 0:00:14]} 40. Qxd5 {[%clk 0:00:18]}  Rxd5 {[%clk 0:00:15]} 41. Ra3 {[%clk 0:00:19]}  Bd4 {[%clk 0:00:14]} 42. Rb3 {[%clk 0:00:18]}  Rc5 {[%clk 0:00:14]} 43. f4 {[%clk 0:00:18]}  Bf6 {[%clk 0:00:15]} 44. Kf3 {[%clk 0:00:18]}  Rc3 {[%clk 0:00:15]} 45. Rxc3 {[%clk 0:00:18]}  Bxc3 {[%clk 0:00:15]} 46. g4 {[%clk 0:00:18]}  hxg4+ {[%clk 0:00:15]} 47. Kxg4 {[%clk 0:00:19]}  f5+ {[%clk 0:00:16]} 48. Kh3 {[%clk 0:00:20]}  Bd2 {[%clk 0:00:15]} 49. Kg3 {[%clk 0:00:21]}  Kf6 {[%clk 0:00:15]} 50. Kf3 {[%clk 0:00:21]}  Ke6 {[%clk 0:00:15]} 51. Kg3 {[%clk 0:00:20]}  Kd5 {[%clk 0:00:16]} 52. h5 {[%clk 0:00:21]}  gxh5 {[%clk 0:00:16]} 53. Kh4 {[%clk 0:00:21]}  Bxf4 {[%clk 0:00:16]} 54. Kxh5 {[%clk 0:00:22]}  Bd2 {[%clk 0:00:15]} 55. Kh4 {[%clk 0:00:21]}  f4 {[%clk 0:00:16]} 56. Kg4 {[%clk 0:00:22]}  Kd4 {[%clk 0:00:17]} 57. Kf3 {[%clk 0:00:22]}  Kxd3 {[%clk 0:00:17]} 58. Kf2 {[%clk 0:00:23]}  Be3+ {[%clk 0:00:17]} 59. Kf3 {[%clk 0:00:24]}  Kd4 {[%clk 0:00:17]} 60. Ke2 {[%clk 0:00:24]}  Ke4 {[%clk 0:00:18]} 61. Ke1 {[%clk 0:00:25]}  f3 {[%clk 0:00:19]} 62. Kf1 {[%clk 0:00:25]}  Kf4 {[%clk 0:00:19]} 63. Ke1 {[%clk 0:00:25]}  Kg3 {[%clk 0:00:19]} 64. Kf1 {[%clk 0:00:26]}  f2 {[%clk 0:00:19]} 65. Ke2 {[%clk 0:00:27]}  Kg2 {[%clk 0:00:20]} 66. Kxe3 {[%clk 0:00:28]}  f1=Q {[%clk 0:00:20]} 67. Kd4 {[%clk 0:00:29]}  Qf3 {[%clk 0:00:20]} 68. Kc4 {[%clk 0:00:30]}  Qe3 {[%clk 0:00:20]} 0-1


[Site "https://www.chess.com"]

[Event "Titled Tuesday Blitz June 28 Early 2022"]
[White "Aggelis, Nikolaos"]
[Black "Novikova, Galina"]
[WhiteFideId "4213220"]
[BlackFideId "4157095"]
[WhiteElo "2154"]
[BlackElo "1863"]
[Result "1-0"]
[Round "07"]
[TimeControl "180+1"]
[Date "2022.06.28"]
[WhiteClock "0:00:46"]
[BlackClock "0:00:09"]

1. d4 {[%clk 0:03:00]}  Nf6 {[%clk 0:02:59]} 2. g3 {[%clk 0:03:01]}  d5 {[%clk 0:02:57]} 3. Bg2 {[%clk 0:03:02]}  c6 {[%clk 0:02:54]} 4. Nf3 {[%clk 0:03:02]}  Bf5 {[%clk 0:02:54]} 5. c4 {[%clk 0:03:02]}  e6 {[%clk 0:02:55]} 6. Nc3 {[%clk 0:03:01]}  Nbd7 {[%clk 0:02:54]} 7. Qb3 {[%clk 0:03:01]}  b6 {[%clk 0:02:53]} 8. c5 {[%clk 0:03:02]}  bxc5 {[%clk 0:02:50]} 9. O-O {[%clk 0:02:54]}  Be7 {[%clk 0:02:42]} 10. Qa4 {[%clk 0:02:41]}  Qc8 {[%clk 0:02:37]} 11. Be3 {[%clk 0:02:31]}  c4 {[%clk 0:02:34]} 12. b3 {[%clk 0:02:28]}  cxb3 {[%clk 0:02:31]} 13. axb3 {[%clk 0:02:25]}  O-O {[%clk 0:02:25]} 14. Rfc1 {[%clk 0:02:25]}  Qb7 {[%clk 0:02:18]} 15. Nh4 {[%clk 0:02:09]}  Bg4 {[%clk 0:02:00]} 16. h3 {[%clk 0:02:06]}  Bh5 {[%clk 0:02:01]} 17. g4 {[%clk 0:02:06]}  Bg6 {[%clk 0:02:01]} 18. Nxg6 {[%clk 0:02:06]}  hxg6 {[%clk 0:02:02]} 19. Bf4 {[%clk 0:01:54]}  Nb6 {[%clk 0:01:56]} 20. Qa6 {[%clk 0:01:54]}  Qd7 {[%clk 0:01:44]} 21. Na4 {[%clk 0:01:51]}  Bd6 {[%clk 0:01:40]} 22. Nc5 {[%clk 0:01:49]}  Qe7 {[%clk 0:01:36]} 23. Bxd6 {[%clk 0:01:41]}  Qxd6 {[%clk 0:01:36]} 24. Nb7 {[%clk 0:01:41]}  Qc7 {[%clk 0:01:23]} 25. Na5 {[%clk 0:01:41]}  Rfc8 {[%clk 0:01:01]} 26. Rxc6 {[%clk 0:01:40]}  Qf4 {[%clk 0:00:58]} 27. e3 {[%clk 0:01:36]}  Qg5 {[%clk 0:00:46]} 28. Rac1 {[%clk 0:01:35]}  Re8 {[%clk 0:00:33]} 29. Rc7 {[%clk 0:01:25]}  e5 {[%clk 0:00:33]} 30. dxe5 {[%clk 0:01:19]}  Qxe5 {[%clk 0:00:27]} 31. Rxa7 {[%clk 0:01:16]}  Rxa7 {[%clk 0:00:28]} 32. Qxa7 {[%clk 0:01:17]}  Nbd7 {[%clk 0:00:26]} 33. Qd4 {[%clk 0:01:13]}  Qb8 {[%clk 0:00:21]} 34. b4 {[%clk 0:01:09]}  Nb6 {[%clk 0:00:21]} 35. Nc6 {[%clk 0:01:03]}  Qb7 {[%clk 0:00:18]} 36. b5 {[%clk 0:01:01]}  Ne4 {[%clk 0:00:18]} 37. Ra1 {[%clk 0:00:58]}  Nc4 {[%clk 0:00:08]} 38. Qxd5 {[%clk 0:00:50]}  Ncd2 {[%clk 0:00:09]} 39. Ra7 {[%clk 0:00:46]} 1-0


[Site "https://www.chess.com"]

[Event "Titled Tuesday Blitz June 28 Early 2022"]
[White "Alinasab, Mobina"]
[Black "Hamley, Ryan"]
[WhiteFideId "12528897"]
[BlackFideId "30959497"]
[WhiteElo "2031"]
[BlackElo "2484"]
[Result "1-0"]
[Round "07"]
[TimeControl "180+1"]
[Date "2022.06.28"]
[WhiteClock "0:00:08"]
[BlackClock "0:00:01"]

1. Nf3 {[%clk 0:03:00]}  Nf6 {[%clk 0:02:56]} 2. g3 {[%clk 0:03:00]}  e6 {[%clk 0:02:55]} 3. Bg2 {[%clk 0:03:00]}  d5 {[%clk 0:02:56]} 4. O-O {[%clk 0:03:01]}  Be7 {[%clk 0:02:56]} 5. d4 {[%clk 0:03:02]}  O-O {[%clk 0:02:56]} 6. b3 {[%clk 0:03:02]}  c5 {[%clk 0:02:48]} 7. Bb2 {[%clk 0:03:01]}  Nc6 {[%clk 0:02:47]} 8. dxc5 {[%clk 0:03:01]}  Bxc5 {[%clk 0:02:46]} 9. Ne5 {[%clk 0:03:01]}  Qc7 {[%clk 0:02:45]} 10. Nxc6 {[%clk 0:02:58]}  bxc6 {[%clk 0:02:41]} 11. c4 {[%clk 0:02:55]}  Ba6 {[%clk 0:02:40]} 12. Qc2 {[%clk 0:02:53]}  Rab8 {[%clk 0:02:29]} 13. Nd2 {[%clk 0:02:09]}  e5 {[%clk 0:01:47]} 14. cxd5 {[%clk 0:02:04]}  cxd5 {[%clk 0:01:46]} 15. Rfc1 {[%clk 0:01:12]}  Rbc8 {[%clk 0:01:03]} 16. Qf5 {[%clk 0:01:10]}  Qe7 {[%clk 0:00:53]} 17. Bxe5 {[%clk 0:00:53]}  Bxf2+ {[%clk 0:00:38]} 18. Kxf2 {[%clk 0:00:42]}  Qxe5 {[%clk 0:00:38]} 19. Qxe5 {[%clk 0:00:43]}  Ng4+ {[%clk 0:00:38]} 20. Ke1 {[%clk 0:00:39]}  Nxe5 {[%clk 0:00:39]} 21. Bxd5 {[%clk 0:00:38]}  Ng4 {[%clk 0:00:36]} 22. Bc4 {[%clk 0:00:27]}  Bxc4 {[%clk 0:00:28]} 23. Rxc4 {[%clk 0:00:24]}  Rxc4 {[%clk 0:00:24]} 24. Nxc4 {[%clk 0:00:24]}  Nxh2 {[%clk 0:00:25]} 25. Rd1 {[%clk 0:00:23]}  Ng4 {[%clk 0:00:21]} 26. Rd7 {[%clk 0:00:23]}  Ra8 {[%clk 0:00:20]} 27. Nd6 {[%clk 0:00:16]}  Ne5 {[%clk 0:00:08]} 28. Re7 {[%clk 0:00:16]}  Nc6 {[%clk 0:00:09]} 29. Rc7 {[%clk 0:00:14]}  Ne5 {[%clk 0:00:08]} 30. Nc8 {[%clk 0:00:13]}  a5 {[%clk 0:00:05]} 31. Nb6 {[%clk 0:00:13]}  Rb8 {[%clk 0:00:03]} 32. Rc5 {[%clk 0:00:11]}  Re8 {[%clk 0:00:02]} 33. Rxa5 {[%clk 0:00:10]}  h5 {[%clk 0:00:01]} 34. Nd5 {[%clk 0:00:08]} 1-0


[Site "https://www.chess.com"]

[Event "Titled Tuesday Blitz June 28 Early 2022"]
[White "Al-Tarboush, Ward"]
[Black "Nenezic, Marko"]
[WhiteFideId "7601450"]
[BlackFideId "912123"]
[WhiteElo "2249"]
[BlackElo "2432"]
[Result "0-1"]
[Round "07"]
[TimeControl "180+1"]
[Date "2022.06.28"]
[WhiteClock "0:00:08"]
[BlackClock "0:01:26"]

1. e4 {[%clk 0:03:00]}  c5 {[%clk 0:02:57]} 2. Nf3 {[%clk 0:03:01]}  d6 {[%clk 0:02:57]} 3. d4 {[%clk 0:03:01]}  cxd4 {[%clk 0:02:58]} 4. Nxd4 {[%clk 0:03:02]}  Nf6 {[%clk 0:02:59]} 5. Nc3 {[%clk 0:03:02]}  a6 {[%clk 0:03:00]} 6. h3 {[%clk 0:03:02]}  e6 {[%clk 0:03:00]} 7. g4 {[%clk 0:03:02]}  Nfd7 {[%clk 0:02:59]} 8. Be3 {[%clk 0:03:01]}  b5 {[%clk 0:02:57]} 9. a4 {[%clk 0:03:01]}  b4 {[%clk 0:02:57]} 10. Nce2 {[%clk 0:03:01]}  Bb7 {[%clk 0:02:57]} 11. Bg2 {[%clk 0:03:01]}  Be7 {[%clk 0:02:50]} 12. Qd2 {[%clk 0:03:01]}  Nc5 {[%clk 0:02:43]} 13. Qxb4 {[%clk 0:02:59]}  d5 {[%clk 0:02:43]} 14. O-O {[%clk 0:02:55]}  dxe4 {[%clk 0:02:43]} 15. Rad1 {[%clk 0:02:54]}  Qc8 {[%clk 0:02:40]} 16. Qc3 {[%clk 0:02:42]}  Nbd7 {[%clk 0:02:39]} 17. a5 {[%clk 0:02:32]}  Nf6 {[%clk 0:02:07]} 18. b4 {[%clk 0:02:19]}  Nd5 {[%clk 0:02:06]} 19. Qb2 {[%clk 0:02:16]}  Na4 {[%clk 0:02:05]} 20. Qb3 {[%clk 0:02:16]}  Nac3 {[%clk 0:02:05]} 21. Nxc3 {[%clk 0:02:11]}  Nxc3 {[%clk 0:02:04]} 22. Rd2 {[%clk 0:02:04]}  Bd5 {[%clk 0:02:01]} 23. Qb2 {[%clk 0:02:01]}  Rb8 {[%clk 0:01:55]} 24. b5 {[%clk 0:01:41]}  axb5 {[%clk 0:01:54]} 25. Nb3 {[%clk 0:01:34]}  O-O {[%clk 0:01:51]} 26. Bd4 {[%clk 0:01:32]}  b4 {[%clk 0:01:51]} 27. Qa1 {[%clk 0:01:11]}  Ra8 {[%clk 0:01:44]} 28. Qe1 {[%clk 0:01:02]}  f5 {[%clk 0:01:43]} 29. gxf5 {[%clk 0:00:55]}  Bxb3 {[%clk 0:01:40]} 30. cxb3 {[%clk 0:00:51]}  exf5 {[%clk 0:01:40]} 31. Bb6 {[%clk 0:00:41]}  Bc5 {[%clk 0:01:35]} 32. Rc2 {[%clk 0:00:25]}  Bxb6 {[%clk 0:01:33]} 33. axb6 {[%clk 0:00:26]}  Qc5 {[%clk 0:01:32]} 34. Qe3 {[%clk 0:00:24]}  Qb5 {[%clk 0:01:31]} 35. Rd2 {[%clk 0:00:18]}  f4 {[%clk 0:01:30]} 36. Qd4 {[%clk 0:00:17]}  f3 {[%clk 0:01:31]} 37. Bh1 {[%clk 0:00:09]}  Qg5+ {[%clk 0:01:31]} 38. Kh2 {[%clk 0:00:09]}  Rad8 {[%clk 0:01:31]} 39. Qc4+ {[%clk 0:00:09]}  Kh8 {[%clk 0:01:31]} 40. Rxd8 {[%clk 0:00:09]}  Qf4+ {[%clk 0:01:27]} 41. Kg1 {[%clk 0:00:09]}  Rxd8 {[%clk 0:01:27]} 42. b7 {[%clk 0:00:09]}  Ne2+ {[%clk 0:01:27]} 43. Qxe2 {[%clk 0:00:08]}  fxe2 {[%clk 0:01:28]} 44. Ra1 {[%clk 0:00:08]}  Rd1+ {[%clk 0:01:26]} 0-1


[Site "https://www.chess.com"]